fUST/lending_fUST_20240103
["ID","MTS","AMOUNT","RATE_DAILY","PERIOD"]
[310009215,1704285055624,-500.0,0.00046027,21]
[310009217,1704285055634,-500.0,0.00046027,21]
[310009219,1704285055643,-500.0,0.00046027,21]
[310009221,1704285055653,-500.0,0.00046027,21]
[310009223,1704285055664,-500.0,0.00046027,21]
[310009225,1704285055674,-500.0,0.00046027,21]
[310009227,1704285055683,-500.0,0.00046027,21]
[310009229,1704285055693,-500.0,0.00046027,21]
[310009231,1704285055703,-500.0,0.00046027,21]
[310009233,1704285055712,-500.0,0.00046027,21]
[310009235,1704285055721,-500.0,0.00046027,21]
[310009237,1704285055731,-328.52037582,0.00046027,21]
[310009239,1704285055740,-500.0,0.00046027,21]
[310009241,1704285055751,-500.0,0.00046027,21]
[310009243,1704285055762,-246.79238327,0.00046027,21]
[310009245,1704285055771,-500.0,0.00046027,21]
[310009247,1704285055780,-500.0,0.00046027,21]
[310009249,1704285055789,-500.0,0.00046027,21]
[310009251,1704285055800,-500.0,0.00046027,21]
[310009253,1704285055809,-500.0,0.00046027,21]
[310009255,1704285055820,-500.0,0.00046027,21]
[310009257,1704285055829,-500.0,0.00046027,21]
[310009259,1704285055838,-500.0,0.00046027,21]
[310009261,1704285055848,-500.0,0.00046027,21]
[310009263,1704285055858,-500.0,0.00046027,21]
[310009265,1704285055868,-500.0,0.00046027,21]
[310009267,1704285055877,-429.577239,0.00046027,21]
[310009269,1704285055887,-510.96061953,0.00046027,21]
[310009271,1704285055898,-502.00957167,0.00046027,21]
[310009273,1704285055908,-503.69094618,0.00046027,21]
[310009275,1704285055921,-500.0,0.00046027,21]
[310009277,1704285055932,-500.0,0.00046027,21]
[310009279,1704285055942,-500.0,0.00046027,21]
[310009280,1704285055952,-506.1921113,0.00046027,21]
[310009281,1704285055963,-516.96166145,0.00046027,21]
[310009282,1704285055974,-500.0,0.00046027,21]
[310009283,1704285055986,-500.0,0.00046027,21]
[310009285,1704285055995,-500.0,0.00046027,21]
[310009287,1704285056006,-500.0,0.00046027,21]
[310009289,1704285056016,-509.75471461,0.00046027,21]
[310009291,1704285056026,-634.86731504,0.00046027,21]
[310009293,1704285056037,-500.0,0.00046027,21]
[310009295,1704285056046,-509.43251574,0.00046027,21]
[310009297,1704285056057,-601.0320363,0.00046027,21]
[310009299,1704285056067,-500.0,0.00046027,21]
[310009301,1704285056077,-500.0,0.00046027,21]
[310009303,1704285056088,-500.0,0.00046027,21]
[310009305,1704285056098,-511.89317047,0.00046027,21]
[310009308,1704285056113,-500.0,0.00046027,21]
[310009310,1704285056124,-500.0,0.00046027,21]
[310009312,1704285056132,-500.0,0.00046027,21]
[310009314,1704285056144,-500.0,0.00046027,21]
[310009316,1704285056153,-500.0,0.00046027,21]
[310009318,1704285056166,-500.0,0.00046027,21]
[310009320,1704285056176,-500.0,0.00046027,21]
[310009322,1704285056186,-500.0,0.00046027,21]
[310009324,1704285056196,-524.55943634,0.00046027,21]
[310009326,1704285056206,-500.0,0.00046027,21]
[310009328,1704285056215,-500.0,0.00046027,21]
[310009330,1704285056225,-500.0,0.00046027,21]
[310009332,1704285056234,-500.0,0.00046027,21]
[310009334,1704285056243,-500.0,0.00046027,21]
[310009336,1704285056253,-500.0,0.00046027,21]
[310009342,1704285056305,-500.0,0.00046027,21]
[310009344,1704285056318,-500.0,0.00046027,21]
[310009347,1704285056328,-500.0,0.00046027,21]
[310009349,1704285056336,-500.0,0.00046027,21]
[310009351,1704285056346,-500.0,0.00046027,21]
[310009353,1704285056356,-500.0,0.00046027,21]
[310009355,1704285056365,-380.08054072,0.00046027,21]
[310009357,1704285056375,-585.60251893,0.00046027,21]
[310009359,1704285056384,-500.0,0.00046027,21]
[310009361,1704285056394,-500.0,0.00046027,21]
[310009363,1704285056403,-485.12366676,0.00046027,21]
[310009365,1704285056414,-500.0,0.00046027,21]
[310009367,1704285056423,-150.0,0.00046027,21]
[310009368,1704285056432,-502.16721781,0.00046027,21]
[310009370,1704285056442,-500.0,0.00046027,21]
[310009373,1704285056451,-501.29559852,0.00046027,21]
[310009375,1704285056462,-500.0,0.00046027,21]
[310009377,1704285056471,-500.0,0.00046027,21]
[310009379,1704285056480,-500.0,0.00046027,21]
[310009381,1704285056490,-500.0,0.00046027,21]
[310009383,1704285056499,-487.41007314,0.00046027,21]
[310009385,1704285056509,-500.0,0.00046027,21]
[310009387,1704285056518,-500.0,0.00046027,21]
[310009389,1704285056528,-505.21001314,0.00046027,21]
[310009391,1704285056537,-500.0,0.00046027,21]
[310009393,1704285056546,-500.0,0.00046027,21]
[310009395,1704285056555,-500.0,0.00046027,21]
[310009397,1704285056564,-500.0,0.00046027,21]
[310009399,1704285056573,-500.0,0.00046027,21]
[310009401,1704285056583,-500.0,0.00046027,21]
[310009402,1704285056592,-500.0,0.00046027,21]
[310009403,1704285056600,-500.0,0.00046027,21]
[310009404,1704285056610,-500.0,0.00046027,21]
[310009406,1704285056619,-500.0,0.00046027,21]
[310009408,1704285056628,-500.0,0.00046027,21]
[310009410,1704285056637,-500.0,0.00046027,21]
[310009412,1704285056646,-500.0,0.00046027,21]
[310009414,1704285056655,-500.0,0.00046027,21]
[310009415,1704285056667,-500.0,0.00046027,21]
[310009417,1704285056676,-500.0,0.00046027,21]
[310009419,1704285056686,-500.0,0.00046027,21]
[310009421,1704285056696,-500.0,0.00046027,21]
[310009423,1704285056705,-500.0,0.00046027,21]
[310009425,1704285056714,-500.0,0.00046027,21]
[310009427,1704285056723,-500.0,0.00046027,21]
[310009430,1704285056733,-500.0,0.00046027,21]
[310009432,1704285056742,-500.0,0.00046027,21]
[310009433,1704285056751,-500.0,0.00046027,21]
[310009435,1704285056761,-500.0,0.00046027,21]
[310009437,1704285056770,-500.0,0.00046027,21]
[310009439,1704285056780,-500.0,0.00046027,21]
[310009442,1704285056790,-500.0,0.00046027,21]
[310009443,1704285056800,-500.0,0.00046027,21]
[310009445,1704285056810,-500.0,0.00046027,21]
[310009447,1704285056828,-500.0,0.00046027,21]
[310009449,1704285056838,-516.01153075,0.00046027,21]
[310009451,1704285056848,-500.0,0.00046027,21]
[310009453,1704285056858,-500.00000001,0.00046027,21]
[310009456,1704285056868,-594.19725092,0.00046027,21]
[310009458,1704285056878,-500.0,0.00046027,21]
[310009460,1704285056887,-510.04693393,0.00046027,21]
[310009462,1704285056896,-500.0,0.00046027,21]
[310009464,1704285056906,-500.0,0.00046027,21]
[310009466,1704285056918,-500.0,0.00046027,21]
[310009468,1704285056928,-500.0,0.00046027,21]
[310009469,1704285056938,-500.0,0.00046027,21]
[310009472,1704285056948,-478.07277205,0.00046027,21]
[310009474,1704285056958,-542.82,0.00046027,21]
[310009476,1704285056967,-542.82,0.00046027,21]
[310009478,1704285056981,-542.82,0.00046027,21]
[310009480,1704285056998,-542.82,0.00046027,21]
[310009481,1704285057008,-542.82,0.00046027,21]
[310009483,1704285057018,-542.82,0.00046027,21]
[310009486,1704285057027,-500.0,0.00046027,21]
[310009488,1704285057037,-542.82,0.00046027,21]
[310009490,1704285057047,-542.82,0.00046027,21]
[310009491,1704285057056,-500.0,0.00046027,21]
[310009493,1704285057065,-542.82,0.00046027,21]
[310009495,1704285057074,-500.0,0.00046027,21]
[310009497,1704285057084,-542.82,0.00046027,21]
[310009499,1704285057095,-500.0,0.00046027,21]
[310009501,1704285057105,-542.82,0.00046027,21]
[310009504,1704285057158,-500.0,0.00046027,21]
[310009505,1704285057170,-340.60339454,0.00046027,21]
[310009506,1704285057179,-542.82,0.00046027,21]
[310009507,1704285057188,-542.82,0.00046027,21]
[310009508,1704285057198,-542.82,0.00046027,21]
[310009509,1704285057208,-432.06594095,0.00046027,21]
[310012469,1704285693174,24900.0,0.00026655,2]
[310012470,1704285728756,175.310761,0.00026299,2]
[310012483,1704285746812,177239.09964103,0.00026655,7]
[310012484,1704285747274,664.76993186,0.00026655,2]
[310012485,1704285768343,245.79078382,0.0002399,2]
[310012486,1704285778823,25351.20675807,0.00026655,7]
[310012487,1704285782779,950.9520799,0.00026471,2]
[310012488,1704285794060,155.35344618,0.00026655,2]
[310012489,1704285802459,2076.07378809,0.00026655,2]
[310012491,1704285820219,739.625127,0.00026455,2]
[310012492,1704285820253,1107.18894848,0.00026655,2]
[310012493,1704285820651,739.625127,0.00026455,2]
[310012494,1704285820979,739.625127,0.00026455,2]
[310012495,1704285821390,739.625127,0.00026455,2]
[310012496,1704285821968,739.625127,0.00026455,2]
[310012497,1704285830846,250.0,0.00026449,2]
[310012504,1704285895096,601.249661,0.00026333,2]
[310012509,1704285925598,166.666666,0.00025786,2]
[310012510,1704285926092,166.666666,0.00026489,2]
[310012511,1704285926373,166.666666,0.00027192,2]
[310012518,1704285940869,31167.7910531,0.00027192,7]
[310012519,1704285941407,1514.64301972,0.00026449,2]
[310012520,1704285941520,7284.8,0.00027209,3]
[310012523,1704285952588,6070.67,0.00027209,3]
[310012528,1704285963010,186289.93735932,0.00027192,7]
[310012529,1704285966524,5058.89,0.00027208,3]
[310012530,1704285967540,191.00075839,0.00027115,5]
[310012534,1704285977045,5672.7,0.00027205,3]
[310012535,1704285982294,861.731602,0.00026217,2]
[310012536,1704285989025,154.81422293,0.0002721,2]
[310012537,1704285989234,871.16529394,0.0002721,2]
[310012538,1704285990825,156.56092119,0.0002721,2]
[310012541,1704285993279,7932.20562033,0.0002721,2]
[310012542,1704285994027,559.68125324,0.0002721,2]
[310012543,1704285994564,154.81422293,0.0002721,4]
[310012544,1704285994634,3732.74533379,0.0002721,2]
[310012545,1704285995020,4908.91880815,0.0002721,2]
[310012546,1704285996763,253.17313502,0.0002721,2]
[310012547,1704285997042,309.6903097,0.00026216,2]
[310012548,1704285997463,707.91854197,0.0002721,2]
[310012549,1704285998688,612.96786415,0.0002721,2]
[310012550,1704285999538,154.81422293,0.0002721,2]
[310012551,1704285999811,154.81422293,0.0002721,2]
[310012552,1704286000002,4727.25,0.00027202,3]
[310012553,1704286003349,7544.16505711,0.0002721,2]
[310012554,1704286003385,2631.68489228,0.0002721,2]
[310012556,1704286004708,4863.84931342,0.0002721,2]
[310012557,1704286005142,5944.69403083,0.0002721,2]
[310012558,1704286005201,242.17543569,0.0002721,2]
[310012560,1704286007350,249.91407237,0.0002721,2]
[310012561,1704286008662,22805.96653359,0.0002721,2]
[310012562,1704286010156,1678.44623893,0.0002721,2]
[310012563,1704286011239,852.21256595,0.0002721,2]
[310012564,1704286011455,3939.38,0.00027202,3]
[310012565,1704286012567,322.38366746,0.0002721,2]
[310012566,1704286013193,590.516407,0.0002721,2]
[310012567,1704286014247,154.81422293,0.0002721,2]
[310012568,1704286014772,26377.44033991,0.0002721,2]
[310012569,1704286015318,2090.15137702,0.0002721,2]
[310012570,1704286015869,641.96499442,0.00027201,2]
[310012571,1704286017732,944.51958651,0.00027201,2]
[310012572,1704286018307,2804.5410618,0.00027201,2]
[310012573,1704286018615,1584.80241164,0.0002721,2]
[310012574,1704286019851,1464.41511106,0.0002721,2]
[310012575,1704286021730,451.07921998,0.0002721,2]
[310012576,1704286022047,1019.46116191,0.0002721,2]
[310012577,1704286022122,2508.36986414,0.0002721,2]
[310012578,1704286022340,2997.40556678,0.00027201,2]
[310012579,1704286022436,154.81422293,0.0002721,2]
[310012580,1704286023088,3282.81,0.00027202,3]
[310012581,1704286023117,1573.51769649,0.0002721,2]
[310012582,1704286024228,4431.99090233,0.0002721,2]
[310012583,1704286024840,264.48060354,0.0002721,2]
[310012584,1704286025585,154.81422293,0.0002721,2]
[310012585,1704286028372,586.04748878,0.0002721,2]
[310012586,1704286028401,7853.18847264,0.0002721,2]
[310012587,1704286028693,5351.46729179,0.0002721,2]
[310012588,1704286028914,3905.16799703,0.0002721,2]
[310012589,1704286029335,285.30351426,0.0002721,2]
[310012590,1704286029811,524.84202363,0.0002721,2]
[310012591,1704286030350,15856.05933973,0.0002721,2]
[310012592,1704286031130,413.50609139,0.0002721,2]
[310012593,1704286031906,1238.07238046,0.0002721,2]
[310012594,1704286032153,19632.2086524,0.0002721,2]
[310012595,1704286032325,166.32510416,0.0002721,2]
[310012596,1704286034917,2735.68,0.00027202,3]
[310012598,1704286039098,2481.12619407,0.0002721,2]
[310012599,1704286039203,520.2185,0.0002721,2]
[310012600,1704286042076,1576.20853557,0.0002721,2]
[310012601,1704286043245,679.37734518,0.0002721,2]
[310012602,1704286058112,78250.97365781,0.0002721,2]
[310012604,1704286070522,4803.68452735,0.0002721,2]
[310012605,1704286072435,170.34898857,0.00027111,2]
[310012607,1704286099184,2409.4689373,0.00026762,2]
[310012612,1704286130342,24900.0,0.00026216,2]
[310012613,1704286134117,873.72208253,0.0002721,2]
[310012615,1704286139700,4781.11668773,0.0002721,2]
[310012617,1704286147095,-166.16362772,0.00027211,2]
[310012618,1704286147117,-553.25941224,0.00027211,2]
[310012619,1704286147142,-293.96606539,0.00027212,2]
[310012620,1704286147162,-178.24808117,0.00027212,2]
[310012621,1704286147184,-1029.00208641,0.00027212,2]
[310012622,1704286147205,-154.84515485,0.00027213,2]
[310012623,1704286147226,-593.75888513,0.00027213,2]
[310012624,1704286147246,-176.29639192,0.00027214,2]
[310012625,1704286147266,-154.84515485,0.00027214,2]
[310012626,1704286147287,-16425.81269981,0.00027214,2]
[310012627,1704286148131,-4406.03867123,0.00027214,2]
[310012628,1704286148153,-164.65816911,0.00027215,2]
[310012629,1704286148172,-360.177092,0.00027215,2]
[310012630,1704286148191,-15185.30495486,0.00027215,2]
[310012631,1704286148210,-599.52165642,0.00027217,2]
[310012632,1704286148230,-176.88363716,0.00027358,3]
[310012633,1704286148249,-512.77141548,0.00027426,2]
[310012634,1704286148268,-205.10856618,0.00027426,2]
[310012635,1704286148287,-3270.71739652,0.00027458,2]
[310012636,1704286148307,-1766.68967922,0.00027595,2]
[310012637,1704286148327,-166.666666,0.00027895,2]
[310012638,1704286148346,-601.249661,0.00028176,2]
[310012639,1704286148367,-685.5196151,0.00028389,2]
[310012640,1704286148388,-72.75973905,0.00028598,2]
[310012641,1704286151126,-93.90692695,0.00028598,2]
[310012642,1704286151160,-166.666666,0.00029301,2]
[310012643,1704286151190,-396.3207871,0.00029562,2]
[310012644,1704286151213,-1320.81396188,0.00029899,2]
[310012645,1704286151238,-1241.79094446,0.000299,2]
[310012646,1704286151261,-193.27845609,0.000299,2]
[310012647,1704286151286,-154.84515485,0.0003,60]
[310012648,1704286151308,-163.0,0.0003,2]
[310012649,1704286151345,-383.39998764,0.00030066,4]
[310012650,1704286154012,230.12748224,0.0002721,2]
[310012772,1704286236104,-154.84515485,0.00029912,2]
[310012774,1704286236114,-170.1709713,0.00029912,2]
[310012776,1704286236124,-399.38718748,0.00029913,2]
[310012778,1704286236135,-321.94449774,0.00029914,2]
[310012780,1704286236144,-156.60017086,0.00029914,2]
[310012781,1704286236155,-2704.45519417,0.00029914,2]
[310012783,1704286236165,-505.8171371,0.00029916,2]
[310012785,1704286236176,-2631.63248071,0.00033,4]
[310012788,1704286236188,-174.573777,0.00033473,2]
[310012790,1704286236198,-200.0,0.00033704,2]
[310012791,1704286236208,-4657.66153763,0.00034,2]
[310012793,1704286236219,-1000.0,0.00034,7]
[310012795,1704286236229,-246.72900752,0.00034368,4]
[310012797,1704286236239,-126.77168364,0.00034521,2]
[310012809,1704286236357,-1888.72555736,0.00034521,2]
[310012811,1704286236367,-666.4896426,0.0003495,5]
[310012813,1704286236377,-331.97293247,0.00035,4]
[310012815,1704286236387,-590.27084275,0.00035,2]
[310012817,1704286236397,-163.0,0.00035452,2]
[310012819,1704286236406,-154.84515485,0.00035615,5]
[310012821,1704286236416,-4177.42015254,0.00035615,4]
[310012823,1704286236429,-662.25389,0.00035616,120]
[310012825,1704286236438,-7987.1129013,0.00035797,4]
[310012827,1704286236448,-2015.497241,0.00035798,2]
[310012829,1704286236458,-229.99225833,0.00036,4]
[310012831,1704286236468,-170.34898856,0.00036281,2]
[310012833,1704286236477,-28502.80063026,0.00037073,4]
[310012835,1704286236486,-2015.497241,0.00037075,2]
[310012837,1704286236496,-176.88363715,0.00037788,8]
[310012839,1704286236506,-2334.41057747,0.00037794,5]
[310012841,1704286236516,-250.0,0.0003797,15]
[310012843,1704286236525,-1099.41,0.0003799,3]
[310012845,1704286236534,-2096.5,0.0003799,3]
[310012847,1704286236544,-1747.08,0.0003799,3]
[310012849,1704286236554,-807.27659054,0.00038,120]
[310012851,1704286236564,-69787.55183919,0.00038,30]
[310012853,1704286236575,-212.34718909,0.00038252,2]
[310012855,1704286236584,-2015.497241,0.00038352,2]
[310012857,1704286236594,-500.0,0.00038356,2]
[310012859,1704286236604,-244.16309429,0.00038361,2]
[310012861,1704286236614,-14236.88073681,0.00038368,2]
[310012862,1704286236623,-2329.51572442,0.00038375,2]
[310012864,1704286236634,-694.00638392,0.00038375,2]
[310012865,1704286236645,-584.42642856,0.00038383,2]
[310012866,1704286236655,-156.43717567,0.00038684,4]
[310012867,1704286236665,-751.97097364,0.00038684,4]
[310012868,1704286236675,-10657.47396206,0.00038685,2]
[310012869,1704286236685,-3390.28998706,0.00038685,4]
[310012870,1704286236695,-3114.50525257,0.00038685,4]
[310013189,1704286240948,-331.97293247,0.00035451,4]
[310013190,1704286240958,-176.68282155,0.00037072,4]
[310013191,1704286240968,-2332.3640728,0.00038686,2]
[310013192,1704286240983,-9980.99827317,0.00038686,2]
[310013193,1704286240998,-4109.78386533,0.00038686,2]
[310013194,1704286241008,-2357.95826188,0.00038686,2]
[310013195,1704286241017,-213.0,0.0003874,2]
[310013196,1704286241027,-9904.01259375,0.000388,45]
[310013197,1704286241039,-1880.79898594,0.000388,45]
[310013199,1704286241052,-2406.86665768,0.000388,45]
[310013200,1704286241061,-861.731602,0.00039325,2]
[310013201,1704286241071,-3768.09739589,0.00039484,4]
[310013204,1704286241081,-154.84515485,0.00039485,4]
[310013205,1704286241091,-1369.717492,0.00039485,4]
[310013208,1704286241103,-1269.02823523,0.00039486,4]
[310013211,1704286241114,-2114.13126207,0.00039486,4]
[310013214,1704286241124,-1145.00728631,0.00039487,4]
[310013216,1704286241134,-823.56526853,0.00039487,4]
[310013219,1704286241144,-793.40016296,0.00039487,4]
[310013222,1704286241157,-154.84515485,0.00039488,4]
[310013225,1704286241167,-325.37966407,0.00039488,4]
[310013227,1704286241177,-154.84515485,0.00039489,4]
[310013230,1704286241188,-2808.26480597,0.00039489,4]
[310013233,1704286241199,-179.97,0.0003949,60]
[310013236,1704286241209,-257.61,0.0003949,60]
[310013239,1704286241222,-12669.98140755,0.00039629,4]
[310013242,1704286241234,-2015.497241,0.0003963,2]
[310013244,1704286241244,-371.04881992,0.0004,4]
[310013246,1704286241260,-634.94217488,0.00040495,2]
[310013250,1704286241270,-8730.6133289,0.00040496,4]
[310013253,1704286241281,-197.53765946,0.00040878,4]
[310013256,1704286241291,-899.88098086,0.00040878,4]
[310013258,1704286241301,-2577.26869701,0.00040879,2]
[310013261,1704286241312,-438.08601037,0.0004088,4]
[310013263,1704286241322,-495.02290589,0.0004088,4]
[310013265,1704286241332,-3659.97085156,0.00040884,4]
[310013267,1704286241341,-150.69465081,0.00040886,2]
[310013269,1704286241353,-2665.7525875,0.00041096,15]
[310013271,1704286241364,-240.2236437,0.00041241,4]
[310013273,1704286241374,-1037.60264758,0.00041242,2]
[310013275,1704286241384,-662.25389,0.00041553,120]
[310013277,1704286241395,-350.0,0.00041767,30]
[310013279,1704286241404,-263.0,0.00042192,4]
[310013281,1704286241416,-1455.9,0.0004264,3]
[310013283,1704286241427,-2028.12124664,0.00042649,4]
[310013285,1704286241436,-1341.60780426,0.0004265,4]
[310013287,1704286241446,-849.53460612,0.0004265,4]
[310013290,1704286241460,-150.0,0.00042651,60]
[310013292,1704286241473,-176.0,0.00042651,60]
[310013294,1704286241484,-150.0,0.00042661,60]
[310013296,1704286241494,-150.0,0.00042661,60]
[310013298,1704286241504,-150.0,0.00042671,60]
[310013300,1704286241514,-150.0,0.00042671,60]
[310013302,1704286241524,-3546.5942375,0.0004268,4]
[310013305,1704286241617,-307.66284929,0.0004268,2]
[310013306,1704286241630,-33856.43721814,0.00042681,4]
[310013307,1704286241640,-1125.29074115,0.00042681,4]
[310013308,1704286241651,-23698.47321757,0.00042682,4]
[310013309,1704286241663,-4739.45845558,0.00042682,4]
[310013310,1704286241673,-21392.4482222,0.00042684,4]
[310013311,1704286241684,-507.84926876,0.00042686,4]
[310013312,1704286241694,-150.83408251,0.00042688,2]
[310013313,1704286241705,-1399.02037672,0.00042748,2]
[310013314,1704286241715,-153.362399,0.00042857,30]
[310013315,1704286241728,-153.362397,0.00042857,30]
[310013316,1704286241739,-4808.08580524,0.00043,7]
[310013317,1704286241748,-301.66816502,0.00043405,4]
[310013318,1704286241758,-378.10464426,0.00043722,10]
[310013319,1704286241768,-1489.41414776,0.00043927,2]
[310013320,1704286241778,-225.76405521,0.00044,4]
[310013321,1704286241789,-603.33633004,0.00044135,7]
[310013322,1704286241799,-239.0,0.00044524,2]
[310013323,1704286241808,-160.0,0.00044524,2]
[310013324,1704286241818,-150.162,0.00044524,2]
[310013325,1704286241827,-150.0,0.00044524,2]
[310013326,1704286241838,-563.0,0.000447,120]
[310013327,1704286241848,-5000.0,0.0004486,2]
[310013328,1704286241858,-166.81042853,0.00044877,4]
[310013329,1704286241868,-3225.563682,0.000449,120]
[310013330,1704286241880,-912.68354197,0.00044953,4]
[310013331,1704286241890,-1278.30335464,0.00044996,4]
[310013332,1704286241901,-720.05299569,0.00044996,2]
[310013333,1704286241911,-949.90222397,0.00044996,4]
[310013334,1704286241921,-4077.50322863,0.00044996,4]
[310013335,1704286241931,-881.93346299,0.00044997,4]
[310013336,1704286241941,-154.84515485,0.00044997,4]
[310013337,1704286241951,-15172.13366354,0.00044997,4]
[310013339,1704286241960,-164.48834273,0.00044997,4]
[310013341,1704286241973,-359.84366574,0.00044997,2]
[310013343,1704286241983,-3412.36537465,0.00044997,2]
[310013345,1704286241993,-166.00144656,0.00044997,4]
[310013347,1704286242002,-1497.93796382,0.00044997,4]
[310013349,1704286242012,-589.40230346,0.00044997,4]
[310013350,1704286242021,-355.45269779,0.00044998,4]
[310013352,1704286242030,-342.46098456,0.00044998,4]
[310013354,1704286242041,-155.37813505,0.00044998,4]
[310013356,1704286242051,-3604.10378737,0.00044998,4]
[310013358,1704286242060,-6725.23468809,0.00044998,120]
[310013360,1704286242070,-1292.53561827,0.00044998,4]
[310013362,1704286242080,-271.24874984,0.00044998,4]
[310013364,1704286242090,-1185.80395645,0.00044998,4]
[310013367,1704286242108,-397.70459675,0.00044998,4]
[310013369,1704286242117,-157.1859193,0.00044998,4]
[310013371,1704286242127,-4462.70267766,0.00044998,4]
[310013372,1704286242136,-529.59814122,0.00044998,4]
[310013374,1704286242145,-5697.77099714,0.00044998,4]
[310013377,1704286242155,-2589.73812062,0.00044998,4]
[310013378,1704286242164,-1341.32515183,0.00044998,4]
[310013380,1704286242173,-1245.92180269,0.00044998,4]
[310013382,1704286242183,-484.86079148,0.00044998,4]
[310013385,1704286242195,-320.44221464,0.00044998,4]
[310013387,1704286242205,-167.42855596,0.00044998,4]
[310013389,1704286242215,-400.1818647,0.00044998,4]
[310013391,1704286242226,-379.22410066,0.00044998,4]
[310013393,1704286242238,-1276.87891946,0.00044998,4]
[310013395,1704286242250,-458.21176847,0.00044998,4]
[310013397,1704286242260,-1279.18860924,0.00044998,4]
[310013399,1704286242270,-587.35650154,0.00044998,4]
[310013401,1704286242279,-227.00248797,0.00044998,4]
[310013402,1704286242288,-593.17596955,0.00044998,4]
[310013404,1704286242299,-176.12955362,0.00044998,4]
[310013407,1704286242308,-229.89998056,0.00044998,4]
[310013408,1704286242318,-155.13760345,0.00044998,4]
[310013411,1704286242327,-296.79009175,0.00044999,4]
[310013412,1704286242337,-32254.7660969,0.00044999,4]
[310013414,1704286242346,-295.95,0.00044999,7]
[310013415,1704286242357,-295.95,0.00044999,7]
[310013417,1704286242366,-295.95,0.00044999,7]
[310013419,1704286242376,-295.95,0.00044999,7]
[310013421,1704286242385,-295.95,0.00044999,7]
[310013423,1704286242394,-295.95,0.00044999,7]
[310013424,1704286242403,-295.95,0.00044999,7]
[310013426,1704286242413,-295.95,0.00044999,7]
[310013428,1704286242423,-295.95,0.00044999,7]
[310013430,1704286242433,-295.95,0.00044999,7]
[310013432,1704286242442,-500.0,0.00044999,4]
[310013434,1704286242451,-381.45883591,0.00044999,4]
[310013435,1704286242462,-459.75405473,0.00044999,4]
[310013437,1704286242475,-163.48235825,0.00044999,7]
[310013439,1704286242485,-500.0,0.00044999,4]
[310013441,1704286242494,-275.85243284,0.00044999,7]
[310013442,1704286242504,-500.0,0.00044999,7]
[310013444,1704286242514,-500.0,0.00044999,4]
[310013446,1704286242523,-500.0,0.00044999,7]
[310013448,1704286242532,-431.61537051,0.00044999,4]
[310013449,1704286242543,-448.71152788,0.00044999,7]
[310013451,1704286242554,-12086.00877,0.00044999,4]
[310013452,1704286242563,-236.6224097,0.00045,3]
[310013454,1704286242573,-464.68,0.00045,2]
[310013456,1704286242583,-229481.72507698,0.00045,120]
[310013458,1704286242596,-5714.49612838,0.00045,120]
[310013463,1704286242629,-32579.77879464,0.00045,120]
[310013464,1704286242639,-311.0,0.00045,90]
[310013465,1704286242648,-167.77,0.00045027,2]
[310013467,1704286242657,-167.77,0.00045027,2]
[310013468,1704286242666,-152.89097378,0.00045027,2]
[310013470,1704286242677,-16.12303935,0.00045027,2]
[310013471,1704286242687,-3471.12171036,0.00045102,4]
[310013472,1704286242696,-500.0,0.00045205,27]
[310013473,1704286242705,-166.6713448,0.00045205,2]
[310013474,1704286242714,-153.0,0.00045205,2]
[310013475,1704286242726,-1206.67266007,0.00045252,30]
[310013476,1704286242735,-1500.0,0.0004526,7]
[310013477,1704286242744,-153.0,0.00045288,2]
[310013478,1704286242753,-153.0,0.00045288,2]
[310013479,1704286242763,-153.0,0.00045288,2]
[310013480,1704286242773,-500.0,0.00045479,27]
[310013481,1704286242782,-153.0,0.00045671,2]
[310013482,1704286242792,-153.0,0.00045671,2]